fUSD/lending_fUSD_20240503
["ID","MTS","AMOUNT","RATE_DAILY","PERIOD"]
[325353494,1714747846852,-630.8,0.00043835,30]
[325353495,1714747846862,-1692.55,0.00043835,30]
[325353496,1714747846872,-3170.53,0.00043835,30]
[325353497,1714747846884,-1859.26,0.00043835,30]
[325353498,1714747846893,-500.0,0.00043835,30]
[325353499,1714747846903,-1551.6,0.00043835,30]
[325353500,1714747846914,-503.1011628,0.00043835,30]
[325353501,1714747846926,-500.0,0.00043835,30]
[325353502,1714747846938,-1226.42,0.00043835,30]
[325353503,1714747846948,-653.65,0.00043835,30]
[325353504,1714747846958,-500.0,0.00043835,30]
[325353505,1714747846968,-2886.0,0.00043835,30]
[325353506,1714747846977,-500.0,0.00043835,30]
[325353507,1714747846986,-3310.58,0.00043835,30]
[325353508,1714747846995,-500.0,0.00043835,30]
[325353509,1714747847004,-500.0,0.00043835,30]
[325353510,1714747847013,-585.79,0.00043835,30]
[325353511,1714747847024,-1324.88,0.00043835,30]
[325353512,1714747847034,-500.0,0.00043835,30]
[325353513,1714747847043,-811.19,0.00043835,30]
[325353514,1714747847053,-2381.09,0.00043835,30]
[325353515,1714747847062,-1051.34,0.00043835,30]
[325353517,1714747847072,-500.0,0.00043835,30]
[325353519,1714747847082,-1135.36,0.00043835,30]
[325353520,1714747847092,-500.0,0.00043835,30]
[325353521,1714747847102,-537.29,0.00043835,30]
[325353522,1714747847112,-500.0,0.00043835,30]
[325353523,1714747847124,-5447.89,0.00043835,30]
[325353524,1714747847136,-500.0,0.00043835,30]
[325353525,1714747847146,-500.0,0.00043835,30]
[325353526,1714747847155,-154.57310529,0.00043835,30]
[325353527,1714747847165,-500.0,0.00043835,30]
[325353528,1714747847175,-500.0,0.00043835,30]
[325353529,1714747847184,-2299.29,0.00043835,30]
[325353530,1714747847194,-508.95,0.00043835,30]
[325353531,1714747847204,-4007.64,0.00043835,30]
[325353532,1714747847214,-500.0,0.00043835,30]
[325353533,1714747847224,-1663.91,0.00043835,30]
[325353534,1714747847234,-500.0,0.00043835,30]
[325353535,1714747847244,-1379.17,0.00043835,30]
[325353536,1714747847253,-4812.19,0.00043835,30]
[325353537,1714747847263,-500.0,0.00043835,30]
[325353538,1714747847272,-932.02,0.00043835,30]
[325353539,1714747847282,-1139.71,0.00043835,30]
[325353540,1714747847291,-2000.0,0.00043835,120]
[325353541,1714747847301,-500.0,0.00043835,30]
[325353542,1714747847311,-500.0,0.00043835,30]
[325353543,1714747847321,-500.0,0.00043835,30]
[325353546,1714747847331,-500.0,0.00043835,30]
[325353548,1714747847342,-1073.14,0.00043835,30]
[325353550,1714747847352,-2153.18,0.00043835,30]
[325353551,1714747847362,-500.0,0.00043835,30]
[325353553,1714747847372,-1113.37,0.00043835,30]
[325353556,1714747847383,-2032.62,0.00043835,30]
[325353558,1714747847393,-500.0,0.00043835,30]
[325353560,1714747847403,-500.0,0.00043835,30]
[325353562,1714747847412,-2347.88,0.00043835,30]
[325353563,1714747847421,-1231.4,0.00043835,30]
[325353564,1714747847431,-2661.45,0.00043835,30]
[325353565,1714747847441,-184.94460655,0.00043835,30]
[325353566,1714747847451,-2034.04,0.00043835,30]
[325353567,1714747847460,-500.0,0.00043835,30]
[325353568,1714747847470,-1147.24,0.00043835,30]
[325353569,1714747847480,-500.0,0.00043835,30]
[325353570,1714747847490,-500.0,0.00043835,30]
[325353571,1714747847499,-500.0,0.00043835,30]
[325353572,1714747847509,-819.08,0.00043835,30]
[325353573,1714747847518,-1465.29,0.00043835,30]
[325353574,1714747847529,-500.0,0.00043835,30]
[325353575,1714747847538,-500.0,0.00043835,30]
[325353576,1714747847548,-1090.04,0.00043835,30]
[325353577,1714747847557,-651.62,0.00043835,30]
[325353578,1714747847567,-5423.53,0.00043835,30]
[325353579,1714747847576,-715.08,0.00043835,30]
[325353580,1714747847587,-1004.89,0.00043835,30]
[325353581,1714747847601,-3104.9,0.00043835,30]
[325353582,1714747847610,-1777.7,0.00043835,30]
[325353583,1714747847620,-929.66,0.00043835,30]
[325353584,1714747847631,-559.32,0.00043835,30]
[325353585,1714747847642,-893.5,0.00043835,30]
[325353586,1714747847652,-500.0,0.00043835,30]
[325353587,1714747847661,-1356.28,0.00043835,30]
[325353588,1714747847671,-500.0,0.00043835,30]
[325353589,1714747847681,-500.0,0.00043835,30]
[325353590,1714747847692,-1224.45,0.00043835,30]
[325353591,1714747847702,-500.0,0.00043835,30]
[325353592,1714747847712,-649.74,0.00043835,30]
[325353593,1714747847722,-12197.58,0.00043835,30]
[325353594,1714747847732,-1564.8,0.00043835,30]
[325353595,1714747847742,-3192.76,0.00043835,30]
[325353596,1714747847751,-500.0,0.00043835,30]
[325353597,1714747847761,-500.0,0.00043835,30]
[325353598,1714747847771,-1017.02,0.00043835,30]
[325353599,1714747847782,-816.05,0.00043835,30]
[325353600,1714747847792,-3254.35,0.00043835,30]
[325353601,1714747847801,-500.0,0.00043835,30]
[325353602,1714747847811,-869.63,0.00043835,30]
[325353603,1714747847822,-1127.97,0.00043835,30]
[325353604,1714747847832,-45145.54,0.00043835,30]
[325353605,1714747847841,-500.0,0.00043835,30]
[325353606,1714747847851,-562.60623755,0.00043835,30]
[325353607,1714747847860,-836.29,0.00043835,30]
[325353608,1714747847870,-500.0,0.00043835,30]
[325353609,1714747847881,-1238.61,0.00043835,30]
[325353610,1714747847890,-3030.54,0.00043835,30]
[325353611,1714747847900,-940.5,0.00043835,30]
[325353612,1714747847910,-839.43,0.00043835,30]
[325353613,1714747847919,-642.32,0.00043835,30]
[325353614,1714747847929,-828.04,0.00043835,30]
[325353615,1714747847938,-9126.0,0.00043835,30]
[325353616,1714747847948,-1045.63,0.00043835,30]
[325353617,1714747847958,-513.21330753,0.00043835,30]
[325353618,1714747847967,-500.0,0.00043835,30]
[325353619,1714747847977,-500.0,0.00043835,30]
[325353620,1714747847987,-1350.47,0.00043835,30]
[325353621,1714747847996,-4844.2,0.00043835,30]
[325353622,1714747848006,-505.61,0.00043835,30]
[325353623,1714747848015,-500.0,0.00043835,30]
[325353624,1714747848024,-500.0,0.00043835,30]
[325353625,1714747848045,-500.0,0.00043835,30]
[325353626,1714747848055,-180.530264,0.00043835,30]
[325353627,1714747848065,-1324.38,0.00043835,30]
[325353628,1714747848076,-500.0,0.00043835,30]
[325353629,1714747848086,-2049.68,0.00043835,30]
[325353630,1714747848096,-11721.61,0.00043835,30]
[325353631,1714747848106,-500.0,0.00043835,30]
[325353632,1714747848116,-1341.6,0.00043835,30]
[325353633,1714747848126,-500.0,0.00043835,30]
[325353634,1714747848136,-500.0,0.00043835,20]
[325353635,1714747848147,-500.0,0.00043835,20]
[325353636,1714747848157,-465.05,0.00043835,20]
[325353637,1714747848167,-1188.25,0.00043835,30]
[325353638,1714747848177,-500.0,0.00043835,30]
[325353639,1714747848187,-617.54,0.00043835,30]
[325353640,1714747848198,-500.0,0.00043835,30]
[325353641,1714747848207,-343.67515116,0.00043835,30]
[325353642,1714747848217,-500.0,0.00043835,30]
[325353643,1714747848227,-500.0,0.00043835,30]
[325353644,1714747848238,-1149.8,0.00043835,30]
[325353645,1714747848248,-2368.3,0.00043835,30]
[325353646,1714747848257,-3119.72,0.00043835,30]
[325353647,1714747848267,-500.0,0.00043835,30]
[325353648,1714747848277,-1244.68,0.00043835,30]
[325353649,1714747848286,-5139.01,0.00043835,30]
[325353650,1714747848296,-500.0,0.00043835,30]
[325353651,1714747848306,-968.04,0.00043835,30]
[325353652,1714747848316,-500.0,0.00043835,30]
[325353653,1714747848326,-2565.42,0.00043835,30]
[325353654,1714747848336,-999.84,0.00043835,30]
[325353655,1714747848345,-4887.25,0.00043835,30]
[325353656,1714747848355,-797.12,0.00043835,30]
[325353657,1714747848365,-1608.58,0.00043835,30]
[325353658,1714747848375,-500.0,0.00043835,30]
[325353659,1714747848386,-500.0,0.00043835,30]
[325353660,1714747848398,-1531.87,0.00043835,30]
[325353661,1714747848408,-2953.69,0.00043835,30]
[325353662,1714747848419,-500.0,0.00043835,30]
[325353663,1714747848429,-500.0,0.00043835,30]
[325353664,1714747848439,-500.0,0.00043835,30]
[325353665,1714747848449,-7603.61,0.00043835,30]
[325353666,1714747848458,-15559.13,0.00043835,30]
[325353667,1714747848468,-934.89,0.00043835,30]
[325353668,1714747848478,-500.0,0.00043835,30]
[325353669,1714747848488,-500.0,0.00043835,30]
[325353670,1714747848497,-3463.08,0.00043835,30]
[325353671,1714747848506,-500.0,0.00043835,30]
[325353672,1714747848516,-2725.62921971,0.00043835,30]
[325353673,1714747849172,-3747.98078029,0.00043835,30]
[325353674,1714747849183,-500.0,0.00043835,30]
[325353675,1714747849193,-1126.73,0.00043835,30]
[325353676,1714747849203,-500.0,0.00043835,30]
[325353677,1714747849213,-1551.35,0.00043835,30]
[325353678,1714747849223,-720.69,0.00043835,30]
[325353679,1714747849232,-169.7130042,0.00043835,30]
[325353680,1714747849242,-1893.81,0.00043835,30]
[325353681,1714747849253,-554.36435368,0.00043835,30]
[325353682,1714747849263,-651.64338448,0.00043835,30]
[325353683,1714747849276,-2067.58525624,0.00043835,30]
[325353684,1714747849289,-205.90135928,0.00043835,30]
[325353685,1714747849298,-387.11785184,0.00043835,30]
[325353686,1714747849311,-112.88214816,0.00043835,30]
[325353687,1714747849320,-207.60300194,0.00043835,30]
[325353688,1714747849332,-292.39699806,0.00043835,30]
[325353689,1714747849342,-502.84980496,0.00043835,30]
[325353690,1714747849352,-500.0,0.00043835,30]
[325353691,1714747849363,-500.0,0.00043835,30]
[325353692,1714747849374,-803.7,0.00043835,30]
[325353693,1714747849384,-263.55319698,0.00043835,30]
[325353694,1714747849396,-560.37480464,0.00043835,30]
[325353695,1714747849408,-383.40199838,0.00043835,30]
[325353696,1714747849419,-226.64800162,0.00043835,30]
[325353697,1714747849430,-327.62,0.00043835,30]
[325353698,1714747849443,-3855.88199838,0.00043835,30]
[325353699,1714747849452,-500.0,0.00043835,30]
[325353700,1714747849462,-1014.32,0.00043835,30]
[325353701,1714747849472,-803.68,0.00043835,30]
[325353702,1714747849483,-2920.01,0.00043835,30]
[325353703,1714747849492,-5015.79,0.00043835,30]
[325353704,1714747849502,-1374.3,0.00043835,30]
[325353705,1714747849511,-1809.85,0.00043835,30]
[325353706,1714747849521,-776.37,0.00043835,30]
[325353707,1714747849531,-500.0,0.00043835,30]
[325353708,1714747849541,-961.59,0.00043835,30]
[325353709,1714747849550,-9908.96,0.00043835,30]
[325353710,1714747849560,-1979.23,0.00043835,30]
[325353711,1714747849570,-1462.82,0.00043835,30]
[325353712,1714747849580,-1139.41,0.00043835,30]
[325353713,1714747849594,-1836.46,0.00043835,30]
[325353714,1714747849606,-500.0,0.00043835,30]
[325353715,1714747849616,-1111.66,0.00043835,30]
[325353716,1714747849626,-500.0,0.00043835,30]
[325353717,1714747849638,-4554.86,0.00043835,30]
[325353718,1714747849648,-500.0,0.00043835,30]
[325353719,1714747849658,-1544.68,0.00043835,30]
[325353720,1714747849667,-500.0,0.00043835,30]
[325353721,1714747849677,-1552.61,0.00043835,30]
[325353722,1714747849687,-500.0,0.00043835,30]
[325353723,1714747849697,-7144.33,0.00043835,30]
[325353724,1714747849707,-794.71,0.00043835,30]
[325353725,1714747849717,-500.0,0.00043835,30]
[325353726,1714747849727,-510.5,0.00043835,30]
[325353727,1714747849737,-500.0,0.00043835,30]
[325353728,1714747849746,-1772.37,0.00043835,30]
[325353729,1714747849756,-500.0,0.00043835,30]
[325353730,1714747849766,-500.0,0.00043835,30]
[325353731,1714747849775,-500.0,0.00043835,30]
[325353732,1714747849785,-1450.5,0.00043835,30]
[325353733,1714747849800,-500.0,0.00043835,30]
[325353734,1714747849810,-1022.97,0.00043835,30]
[325353735,1714747849820,-500.0,0.00043835,30]
[325353736,1714747849831,-1371.88,0.00043835,30]
[325353737,1714747849841,-1985.87,0.00043835,30]
[325353738,1714747849851,-1145.61,0.00043835,30]
[325353739,1714747849862,-595.45,0.00043835,30]
[325353740,1714747849872,-1223.83,0.00043835,30]
[325353741,1714747849883,-1809.7,0.00043835,30]
[325353742,1714747849894,-500.0,0.00043835,30]
[325353743,1714747849904,-1501.02,0.00043835,30]
[325353744,1714747849914,-500.0,0.00043835,30]
[325353745,1714747849925,-3248.72,0.00043835,30]
[325353746,1714747849935,-500.0,0.00043835,30]
[325353747,1714747849945,-2810.77,0.00043835,30]
[325353748,1714747849955,-40274.99,0.00043835,30]
[325353749,1714747849965,-500.0,0.00043835,30]
[325353750,1714747849975,-1226.97,0.00043835,30]
[325353751,1714747849985,-1873.76,0.00043835,7]
[325353752,1714747849995,-4017.2,0.00043835,30]
[325353753,1714747850006,-5964.86,0.00043835,30]
[325353754,1714747850016,-1375.8,0.00043835,30]
[325353755,1714747850027,-500.0,0.00043835,30]
[325353756,1714747850037,-1033.41,0.00043835,30]
[325353757,1714747850048,-3650.64,0.00043835,30]
[325353758,1714747850058,-500.0,0.00043835,30]
[325353759,1714747850069,-502.14240655,0.00043835,30]
[325353760,1714747850079,-26264.03,0.00043835,30]
[325353761,1714747850090,-500.0,0.00043835,30]
[325353762,1714747850101,-500.0,0.00043835,30]
[325353763,1714747850112,-3238.19,0.00043835,30]
[325353764,1714747850122,-500.0,0.00043835,30]
[325353765,1714747850134,-500.0,0.00043835,30]
[325353766,1714747850144,-500.0,0.00043835,30]
[325353767,1714747850154,-1164.45,0.00043835,30]
[325353768,1714747850165,-561.67025566,0.00043835,30]
[325353769,1714747850175,-500.0,0.00043835,30]
[325353770,1714747850186,-500.0,0.00043835,30]
[325353771,1714747850196,-500.0,0.00043835,30]
[325353772,1714747850206,-500.0,0.00043835,30]
[325353773,1714747850217,-2642.51,0.00043835,30]
[325353774,1714747850227,-1399.72,0.00043835,30]
[325353775,1714747850237,-500.0,0.00043835,30]
[325353776,1714747850247,-1138.83,0.00043835,30]
[325353777,1714747850258,-2182.9,0.00043835,30]
[325353778,1714747850268,-500.0,0.00043835,30]
[325353779,1714747850278,-500.0,0.00043835,30]
[325353780,1714747850288,-500.0,0.00043835,30]
[325353781,1714747850298,-4246.73,0.00043835,30]
[325353782,1714747850308,-1887.51,0.00043835,30]
[325353783,1714747850318,-3083.05,0.00043835,30]
[325353784,1714747850329,-15247.05,0.00043835,30]
[325353785,1714747850339,-500.0,0.00043835,30]
[325353786,1714747850350,-500.0,0.00043835,30]
[325353787,1714747850360,-500.0,0.00043835,30]
[325353788,1714747850372,-500.0,0.00043835,30]
[325353789,1714747850383,-2941.73,0.00043835,30]
[325353790,1714747850393,-500.0,0.00043835,30]
[325353791,1714747850403,-500.0,0.00043835,30]
[325353792,1714747850413,-500.0,0.00043835,30]
[325353793,1714747850424,-500.0,0.00043835,30]
[325353794,1714747850434,-2712.99,0.00043835,30]
[325353795,1714747850444,-500.0,0.00043835,30]
[325353796,1714747850454,-500.0,0.00043835,30]
[325353797,1714747850465,-1099.83,0.00043835,30]
[325353798,1714747850475,-1324.48,0.00043835,30]
[325353799,1714747850485,-22203.07,0.00043835,30]
[325353800,1714747850495,-500.0,0.00043835,30]
[325353801,1714747850505,-500.0,0.00043835,30]
[325353802,1714747850516,-500.0,0.00043835,30]
[325353803,1714747850525,-814.84,0.00043835,30]
[325353804,1714747850535,-500.0,0.00043835,30]
[325353805,1714747850546,-500.0,0.00043835,30]
[325353806,1714747850556,-2959.65,0.00043835,30]
[325353807,1714747850566,-647.94,0.00043835,30]
[325353808,1714747850576,-5483.42,0.00043835,30]
[325353809,1714747850587,-500.0,0.00043835,30]
[325353810,1714747850598,-1018.33,0.00043835,2]
[325353811,1714747850611,-3516.57,0.00043835,30]
[325353812,1714747850622,-500.0,0.00043835,30]
[325353813,1714747850632,-1122.08,0.00043835,30]
[325353814,1714747850642,-3544.26211826,0.00043835,30]
[325353815,1714747851933,-10109.22788174,0.00043835,30]
[325353816,1714747851944,-500.0,0.00043835,30]
[325353817,1714747851953,-2332.81,0.00043835,30]
[325353818,1714747851963,-976.86,0.00043835,30]
[325353819,1714747851972,-717.46,0.00043835,30]
[325353820,1714747851981,-4155.19,0.00043835,30]
[325353821,1714747851991,-500.0,0.00043835,30]
[325353822,1714747852001,-500.0,0.00043835,30]
[325353823,1714747852010,-2167.12,0.00043835,2]
[325353824,1714747852020,-2176.78,0.00043835,30]
[325353825,1714747852030,-706.98,0.00043835,30]
[325353826,1714747852040,-500.0,0.00043835,2]
[325353827,1714747852050,-1746.23,0.00043835,30]
[325353828,1714747852059,-1760.62,0.00043835,30]
[325353829,1714747852069,-11348.21,0.00043835,30]
[325353830,1714747852078,-608.45,0.00043835,30]
[325353831,1714747852088,-954.83,0.00043835,30]
[325353832,1714747852099,-3265.08,0.00043835,30]
[325353833,1714747852108,-1048.91,0.00043835,30]
[325353834,1714747852118,-718.37,0.00043835,30]
[325353835,1714747852128,-3569.18,0.00043835,30]
[325353836,1714747852139,-500.0,0.00043835,30]
[325353837,1714747852149,-500.0,0.00043835,30]
[325353838,1714747852159,-1966.73,0.00043835,30]
[325353839,1714747852168,-500.0,0.00043835,30]
[325353840,1714747852178,-5368.45,0.00043835,30]
[325353841,1714747852188,-501.17841054,0.00043835,30]
[325353842,1714747852198,-517.95,0.00043835,30]
[325353843,1714747852207,-7606.27,0.00043835,30]
[325353844,1714747852217,-500.0,0.00043835,30]
[325353845,1714747852226,-187.7,0.00043835,30]
[325353846,1714747852236,-862.93,0.00043835,30]
[325353847,1714747852246,-500.0,0.00043835,30]
[325353848,1714747852256,-933.55,0.00043835,30]
[325353849,1714747852266,-500.0,0.00043835,30]
[325353850,1714747852276,-500.0,0.00043835,30]
[325353851,1714747852286,-3144.56,0.00043835,30]
[325353852,1714747852295,-500.0,0.00043835,30]
[325353853,1714747852305,-1473.14,0.00043835,30]
[325353854,1714747852314,-4765.28,0.00043835,30]
[325353855,1714747852324,-500.0,0.00043835,30]
[325353856,1714747852334,-500.0,0.00043835,30]
[325353857,1714747852343,-973.9,0.00043835,30]
[325353858,1714747852352,-500.0,0.00043835,30]
[325353859,1714747852362,-1220.02,0.00043835,30]
[325353860,1714747852373,-500.0,0.00043835,30]
[325353861,1714747852383,-2019.67,0.00043835,30]
[325353862,1714747852394,-500.0,0.00043835,30]
[325353863,1714747852404,-3940.97,0.00043835,30]
[325353864,1714747852414,-500.0,0.00043835,30]
[325353865,1714747852424,-500.0,0.00043835,30]
[325353866,1714747852434,-500.0,0.00043835,30]
[325353867,1714747852444,-500.0,0.00043835,30]
[325353868,1714747852453,-2386.31,0.00043835,30]
[325353869,1714747852463,-4351.71,0.00043835,30]
[325353870,1714747852472,-619.3,0.00043835,30]
[325353871,1714747852482,-4124.21,0.00043835,30]
[325353872,1714747852491,-500.0,0.00043835,30]
[325353873,1714747852501,-500.0,0.00043835,30]
[325353874,1714747852511,-500.0,0.00043835,30]
[325353875,1714747852520,-833.24,0.00043835,30]
[325353876,1714747852530,-768.85,0.00043835,30]
[325353877,1714747852539,-500.0,0.00043835,30]
[325353878,1714747852548,-5212.05,0.00043835,21]
[325353879,1714747852558,-1370.55,0.00043835,30]
[325353880,1714747852567,-944.97,0.00043835,30]
[325353881,1714747852577,-672.19,0.00043835,30]
[325353882,1714747852586,-500.0,0.00043835,30]
[325353883,1714747852597,-500.0,0.00043835,30]
[325353884,1714747852609,-3264.69,0.00043835,30]
[325353885,1714747852619,-988.71,0.00043835,30]
[325353886,1714747852628,-5231.43,0.00043835,30]
[325353887,1714747852640,-500.0,0.00043835,30]
[325353888,1714747852649,-663.57,0.00043835,30]
[325353889,1714747852658,-500.0,0.00043835,30]
[325353890,1714747852667,-500.0,0.00043835,30]
[325353891,1714747852678,-7648.84,0.00043835,30]
[325353892,1714747852687,-500.0,0.00043835,30]
[325353893,1714747852697,-977.38,0.00043835,30]
[325353894,1714747852707,-2405.97,0.00043835,30]
[325353895,1714747852716,-2813.65,0.00043835,30]
[325353896,1714747852725,-2385.78,0.00043835,30]
[325353897,1714747852735,-500.0,0.00043835,30]
[325353898,1714747852745,-825.86,0.00043835,30]
[325353899,1714747852755,-10967.44,0.00043835,30]
[325353900,1714747852765,-646.09611842,0.00043835,30]
[325353901,1714747852775,-7645.49,0.00043835,30]
[325353902,1714747852784,-500.0,0.00043835,30]
[325353903,1714747852794,-500.0,0.00043835,30]
[325353904,1714747852803,-1205.06,0.00043835,30]
[325353905,1714747852812,-1142.17,0.00043835,30]
[325353906,1714747852822,-9700.81,0.00043835,30]
[325353907,1714747852835,-3124.42,0.00043835,30]
[325353908,1714747852844,-1507.1,0.00043835,30]
[325353909,1714747852853,-500.0,0.00043835,30]
[325353910,1714747852863,-500.0,0.00043835,30]
[325353911,1714747852872,-1576.74,0.00043835,30]
[325353912,1714747852882,-2992.09,0.00043835,30]
[325353913,1714747852893,-500.0,0.00043835,30]
[325353914,1714747852903,-500.0,0.00043835,30]
[325353915,1714747852912,-809.19,0.00043835,30]
[325353916,1714747852921,-4868.18,0.00043835,30]
[325353917,1714747852931,-586.25,0.00043835,30]
[325353918,1714747852940,-500.0,0.00043835,30]
[325353919,1714747852950,-500.0,0.00043835,30]
[325353920,1714747852959,-50311.19,0.00043835,30]
[325353921,1714747852969,-2366.1,0.00043835,30]
[325353922,1714747852978,-1606.36,0.00043835,30]
[325353923,1714747852988,-520.53503049,0.00043835,30]
[325353924,1714747852998,-500.0,0.00043835,30]
[325353925,1714747853007,-2404.67,0.00043835,30]
[325353926,1714747853016,-500.0,0.00043835,30]
[325353927,1714747853025,-500.0,0.00043835,30]
[325353928,1714747853035,-500.0,0.00043835,30]
[325353929,1714747853044,-500.0,0.00043835,30]
[325353930,1714747853054,-1047.1,0.00043835,30]
[325353931,1714747853063,-500.0,0.00043835,30]
[325353932,1714747853073,-989.4,0.00043835,30]
[325353933,1714747853083,-540.05211017,0.00043835,30]
[325353934,1714747853092,-500.0,0.00043835,30]
[325353935,1714747853102,-1768.14,0.00043835,30]
[325353936,1714747853112,-1374.71,0.00043835,30]
[325353937,1714747853121,-515.34,0.00043835,30]
[325353938,1714747853131,-6652.15,0.00043835,30]
[325353939,1714747853140,-878.76,0.00043835,30]
[325353940,1714747853150,-500.0,0.00043835,30]
[325353941,1714747853160,-500.0,0.00043835,30]
[325353942,1714747853170,-1030.71,0.00043835,30]
[325353943,1714747853179,-1588.41,0.00043835,30]
[325353944,1714747853189,-500.0,0.00043835,30]
[325353945,1714747853199,-500.0,0.00043835,30]
[325353946,1714747853208,-1698.62,0.00043835,30]
[325353947,1714747853218,-500.0,0.00043835,30]
[325353948,1714747853227,-500.0,0.00043835,30]
[325353949,1714747853237,-2449.91,0.00043835,30]
[325353950,1714747853246,-500.0,0.00043835,30]
[325353951,1714747853255,-500.0,0.00043835,30]
[325353952,1714747853265,-11543.01,0.00043835,30]
[325353953,1714747853275,-1350.21,0.00043835,30]
[325353954,1714747853286,-2471.88,0.00043835,30]
[325353955,1714747853295,-1175.29,0.00043835,30]
[325353956,1714747853305,-571.07,0.00043835,30]
[325353957,1714747853315,-2815.68,0.00043835,30]
[325353958,1714747853325,-1052.8,0.00043835,30]
[325353959,1714747853335,-500.0,0.00043835,30]
[325353960,1714747853344,-500.0,0.00043835,30]
[325353961,1714747853354,-500.0,0.00043835,30]
[325353962,1714747853363,-1926.72,0.00043835,30]
[325353963,1714747853375,-959.09,0.00043835,30]
[325353964,1714747853387,-2272.32,0.00043835,30]
[325353965,1714747853397,-500.0,0.00043835,30]
[325353966,1714747853406,-1359.84,0.00043835,30]
[325353967,1714747853416,-3472.5,0.00043835,30]
[325353968,1714747853426,-1043.76,0.00043835,30]
[325353969,1714747853436,-500.0,0.00043835,30]
[325353970,1714747853446,-1253.89,0.00043835,30]
[325353971,1714747853457,-6377.28,0.00043835,30]
[325353972,1714747853467,-500.0,0.00043835,30]
[325353973,1714747853477,-1720.48,0.00043835,30]
[325353974,1714747853488,-500.0,0.00043835,30]
[325353975,1714747853500,-2942.05,0.00043835,30]
[325353976,1714747853510,-954.95,0.00043835,7]
[325353977,1714747853520,-1319.85,0.00043835,30]
[325353978,1714747853530,-471.24306202,0.00043835,30]
[325353979,1714747853540,-1242.46,0.00043835,30]
[325353980,1714747853550,-612.11,0.00043835,30]
[325353981,1714747853560,-500.0,0.00043835,30]
[325353982,1714747853570,-12685.4,0.00043835,30]
[325353983,1714747853580,-500.0,0.00043835,30]
[325353984,1714747853593,-1267.03,0.00043835,30]
[325353985,1714747853603,-14199.99,0.00043835,30]
[325353986,1714747853612,-730.37,0.00043835,30]
[325353987,1714747853622,-2121.9,0.00043835,30]
[325353988,1714747853631,-11075.05,0.00043835,30]
[325353989,1714747853642,-872.5,0.00043835,30]
[325353990,1714747853652,-500.0,0.00043835,30]
[325353991,1714747853661,-500.0,0.00043835,30]
[325353992,1714747853670,-929.81,0.00043835,30]
[325353993,1714747853681,-3676.31,0.00043835,30]
[325353994,1714747853690,-515.45345517,0.00043835,30]
[325353995,1714747853700,-1000.0,0.00043888,50]
[325353996,1714747853709,-500.0,0.00043888,30]
[325353997,1714747853719,-424.0,0.00043945,30]
[325353998,1714747853728,-150.0,0.00043973,30]
[325353999,1714747853737,-150.0,0.00043973,30]
[325354000,1714747853747,-619.27475546,0.00044,3]
[325354001,1714747853757,-735931.71700835,0.00044,7]
[325354002,1714747853766,-1522.5886051,0.00044,4]
[325354003,1714747853776,-212061.04758533,0.00044,60]
[325354004,1714747854706,-6686.72520002,0.00044,60]
[325354005,1714747854718,-728.79434185,0.00044,60]